{"text_format":"1","workbook":"xlsx","n_sheets":24,"sheets":["A LIRE AVANT UTILISATION","confrérie","hakim","kato","lilo","karen","tong","faland","polo","asdan","valtra","mini","algrim","jac","Shiwashii","lare","just","salca","scroo","master","thim","herit","nick","Feuil1"],"not_rendered":{"charts":0,"images":169,"macros":1,"external_links":0,"defined_names":0,"comments":0,"pivot_tables":0},"unopened":[],"bounds":{"document_bytes":16777216,"sheet_cells":100000,"rows_first":2000,"rows_last":500,"rows_between":2000,"halvings":0,"cell_chars":16384,"cell_head_chars":4096},"cells_cut":0,"cells_raw":0,"read":"whole","date_system":"1900"}

{"sheet":"A LIRE AVANT UTILISATION","index":0,"n_rows":2,"n_cols":1,"rows_kept":2,"cut":false,"hidden":false,"merged":[[1,0,1,9]]}
["FAITES ATTENTION"]
["SVP"]

{"sheet":"confrérie","index":1,"n_rows":11,"n_cols":3,"rows_kept":11,"cut":false,"hidden":false,"merged":[]}
["Badge","En Prod","stock"]
["brasseur",{"$f":"Shiwashii!B2+hakim!B2+kato!B2+lilo!B2+karen!B2+tong!B2+faland!B2+polo!B2+asdan!B2+valtra!B2+mini!B2+algrim!B2+jac!B2+lare!B2+just!B2+salca!B2+scroo!B2+master!B2+thim!B2+herit!B2+nick!B2","v":0},{"$f":"Shiwashii!D2+hakim!D2+kato!D2+lilo!D2+karen!D2+tong!D2+faland!D2+polo!D2+asdan!D2+valtra!D2+mini!D2+algrim!D2+jac!D2+lare!D2+just!D2+salca!D2+scroo!D2+master!D2+thim!D2+herit!D2+nick!D2","v":0}]
["tréant",{"$f":"Shiwashii!B3+hakim!B3+kato!B3+lilo!B3+karen!B3+tong!B3+faland!B3+polo!B3+asdan!B3+valtra!B3+mini!B3+algrim!B3+jac!B3+lare!B3+just!B3+salca!B3+scroo!B3+master!B3+thim!B3+herit!B3+nick!B3","v":0},{"$f":"Shiwashii!D3+hakim!D3+kato!D3+lilo!D3+karen!D3+tong!D3+faland!D3+polo!D3+asdan!D3+valtra!D3+mini!D3+algrim!D3+jac!D3+lare!D3+just!D3+salca!D3+scroo!D3+master!D3+thim!D3+herit!D3+nick!D3","v":0}]
["boulanger",{"$f":"Shiwashii!B4+hakim!B4+kato!B4+lilo!B4+karen!B4+tong!B4+faland!B4+polo!B4+asdan!B4+valtra!B4+mini!B4+algrim!B4+jac!B4+lare!B4+just!B4+salca!B4+scroo!B4+master!B4+thim!B4+herit!B4+nick!B4","v":0},{"$f":"Shiwashii!D4+hakim!D4+kato!D4+lilo!D4+karen!D4+tong!D4+faland!D4+polo!D4+asdan!D4+valtra!D4+mini!D4+algrim!D4+jac!D4+lare!D4+just!D4+salca!D4+scroo!D4+master!D4+thim!D4+herit!D4+nick!D4","v":0}]
["charpentier",{"$f":"Shiwashii!B5+hakim!B5+kato!B5+lilo!B5+karen!B5+tong!B5+faland!B5+polo!B5+asdan!B5+valtra!B5+mini!B5+algrim!B5+jac!B5+lare!B5+just!B5+salca!B5+scroo!B5+master!B5+thim!B5+herit!B5+nick!B5","v":0},{"$f":"Shiwashii!D5+hakim!D5+kato!D5+lilo!D5+karen!D5+tong!D5+faland!D5+polo!D5+asdan!D5+valtra!D5+mini!D5+algrim!D5+jac!D5+lare!D5+just!D5+salca!D5+scroo!D5+master!D5+thim!D5+herit!D5+nick!D5","v":0}]
["fermier",{"$f":"Shiwashii!B6+hakim!B6+kato!B6+lilo!B6+karen!B6+tong!B6+faland!B6+polo!B6+asdan!B6+valtra!B6+mini!B6+algrim!B6+jac!B6+lare!B6+just!B6+salca!B6+scroo!B6+master!B6+thim!B6+herit!B6+nick!B6","v":0},{"$f":"Shiwashii!D6+hakim!D6+kato!D6+lilo!D6+karen!D6+tong!D6+faland!D6+polo!D6+asdan!D6+valtra!D6+mini!D6+algrim!D6+jac!D6+lare!D6+just!D6+salca!D6+scroo!D6+master!D6+thim!D6+herit!D6+nick!D6","v":0}]
["forgeron",{"$f":"Shiwashii!B7+hakim!B7+kato!B7+lilo!B7+karen!B7+tong!B7+faland!B7+polo!B7+asdan!B7+valtra!B7+mini!B7+algrim!B7+jac!B7+lare!B7+just!B7+salca!B7+scroo!B7+master!B7+thim!B7+herit!B7+nick!B7","v":5},{"$f":"Shiwashii!D7+hakim!D7+kato!D7+lilo!D7+karen!D7+tong!D7+faland!D7+polo!D7+asdan!D7+valtra!D7+mini!D7+algrim!D7+jac!D7+lare!D7+just!D7+salca!D7+scroo!D7+master!D7+thim!D7+herit!D7+nick!D7","v":0}]
["flacon",{"$f":"Shiwashii!B8+hakim!B8+kato!B8+lilo!B8+karen!B8+tong!B8+faland!B8+polo!B8+asdan!B8+valtra!B8+mini!B8+algrim!B8+jac!B8+lare!B8+just!B8+salca!B8+scroo!B8+master!B8+thim!B8+herit!B8+nick!B8","v":0},{"$f":"Shiwashii!D8+hakim!D8+kato!D8+lilo!D8+karen!D8+tong!D8+faland!D8+polo!D8+asdan!D8+valtra!D8+mini!D8+algrim!D8+jac!D8+lare!D8+just!D8+salca!D8+scroo!D8+master!D8+thim!D8+herit!D8+nick!D8","v":0}]
["barcelet",{"$f":"Shiwashii!B9+hakim!B9+kato!B9+lilo!B9+karen!B9+tong!B9+faland!B9+polo!B9+asdan!B9+valtra!B9+mini!B9+algrim!B9+jac!B9+lare!B9+just!B9+salca!B9+scroo!B9+master!B9+thim!B9+herit!B9+nick!B9","v":0},{"$f":"Shiwashii!D9+hakim!D9+kato!D9+lilo!D9+karen!D9+tong!D9+faland!D9+polo!D9+asdan!D9+valtra!D9+mini!D9+algrim!D9+jac!D9+lare!D9+just!D9+salca!D9+scroo!D9+master!D9+thim!D9+herit!D9+nick!D9","v":0}]
["bague",{"$f":"Shiwashii!B10+hakim!B10+kato!B10+lilo!B10+karen!B10+tong!B10+faland!B10+polo!B10+asdan!B10+valtra!B10+mini!B10+algrim!B10+jac!B10+lare!B10+just!B10+salca!B10+scroo!B10+master!B10+thim!B10+herit!B10+nick!B10","v":0},{"$f":"Shiwashii!D10+hakim!D10+kato!D10+lilo!D10+karen!D10+tong!D10+faland!D10+polo!D10+asdan!D10+valtra!D10+mini!D10+algrim!D10+jac!D10+lare!D10+just!D10+salca!D10+scroo!D10+master!D10+thim!D10+herit!D10+nick!D10","v":0}]
["statue",{"$f":"Shiwashii!B11+hakim!B11+kato!B11+lilo!B11+karen!B11+tong!B11+faland!B11+polo!B11+asdan!B11+valtra!B11+mini!B11+algrim!B11+jac!B11+lare!B11+just!B11+salca!B11+scroo!B11+master!B11+thim!B11+herit!B11+nick!B11","v":9},{"$f":"Shiwashii!D11+hakim!D11+kato!D11+lilo!D11+karen!D11+tong!D11+faland!D11+polo!D11+asdan!D11+valtra!D11+mini!D11+algrim!D11+jac!D11+lare!D11+just!D11+salca!D11+scroo!D11+master!D11+thim!D11+herit!D11+nick!D11","v":0}]

{"sheet":"hakim","index":2,"n_rows":16,"n_cols":6,"rows_kept":16,"cut":false,"hidden":false,"merged":[[12,0,12,4],[14,0,14,4]]}
["Badge"]
["brasseur",0]
["tréant",0]
["boulanger",0]
["charpentier",0]
["fermier",0]
["forgeron",0]
["flacon",0]
["barcelet",0]
["bague",0]
["statue",0]
[]
["Entrée votre nouveau code secret en C14"]
[null,null,111]
["Vous ne le voyez pas mais il y a un code (111)"]
[null,"x","x",null,"x","x"]

{"sheet":"kato","index":3,"n_rows":16,"n_cols":6,"rows_kept":16,"cut":false,"hidden":false,"merged":[[12,0,12,4],[14,0,14,4]]}
["Badge"]
["brasseur",0]
["tréant",0]
["boulanger",0]
["charpentier",0]
["fermier",0]
["forgeron",0]
["flacon",0]
["barcelet",0]
["bague",0]
["statue",0]
[]
["Entrée votre nouveau code secret en C14"]
[null,null,111]
["Vous ne le voyez pas mais il y a un code (111) "]
[null,"x","x",null,"x","x"]

{"sheet":"lilo","index":4,"n_rows":16,"n_cols":6,"rows_kept":16,"cut":false,"hidden":false,"merged":[[12,0,12,4],[14,0,14,4]]}
["Badge"]
["brasseur",0]
["tréant",0]
["boulanger",0]
["charpentier",0]
["fermier",0]
["forgeron",0]
["flacon",0]
["barcelet",0]
["bague",0]
["statue",0]
[]
["Entrée votre nouveau code secret en C14"]
[null,null,111]
["Vous ne le voyez pas mais il y a un code (111) "]
[null,"x","x",null,"x","x"]

{"sheet":"karen","index":5,"n_rows":16,"n_cols":6,"rows_kept":16,"cut":false,"hidden":false,"merged":[[12,0,12,4],[14,0,14,4]]}
["Badge"]
["brasseur",0]
["tréant",0]
["boulanger",0]
["charpentier",0]
["fermier",0]
["forgeron",0]
["flacon",0]
["barcelet",0]
["bague",0]
["statue",0]
[]
["Entrée votre nouveau code secret en C14"]
[null,null,111]
["Vous ne le voyez pas mais il y a un code (111) "]
[null,"x","x",null,"x","x"]

{"sheet":"tong","index":6,"n_rows":16,"n_cols":6,"rows_kept":16,"cut":false,"hidden":false,"merged":[[12,0,12,4],[14,0,14,4]]}
["Badge"]
["brasseur",0]
["tréant",0]
["boulanger",0]
["charpentier",0]
["fermier",0]
["forgeron",0]
["flacon",0]
["barcelet",0]
["bague",0]
["statue",0]
[]
["Entrée votre nouveau code secret en C14"]
[null,null,111]
["Vous ne le voyez pas mais il y a un code (111) "]
[null,"x","x",null,"x","x"]

{"sheet":"faland","index":7,"n_rows":16,"n_cols":7,"rows_kept":16,"cut":false,"hidden":false,"merged":[[12,0,12,4],[14,0,14,4]]}
["Badge"]
["brasseur",0,null,0,null,null,0]
["tréant",0,null,0,null,null,0]
["boulanger",0,null,0,null,null,0]
["charpentier",0,null,0,null,null,0]
["fermier",0,null,0,null,null,0]
["forgeron",0,null,0,null,null,0]
["flacon",0,null,0,null,null,0]
["barcelet",0,null,0,null,null,0]
["bague",0,null,0,null,null,0]
["statue",0,null,0,null,null,0]
[]
["Entrée votre nouveau code secret en C14"]
[null,null,111]
["Vous ne le voyez pas mais il y a un code (111) "]
[null,"x","x",null,"x","x"]

{"sheet":"polo","index":8,"n_rows":16,"n_cols":7,"rows_kept":16,"cut":false,"hidden":false,"merged":[[12,0,12,4],[14,0,14,4]]}
["Badge"]
["brasseur",0,null,0,null,null,0]
["tréant",0,null,0,null,null,0]
["boulanger",0,null,0,null,null,0]
["charpentier",0,null,0,null,null,0]
["fermier",0,null,0,null,null,0]
["forgeron",0,null,0,null,null,0]
["flacon",0,null,0,null,null,0]
["barcelet",0,null,0,null,null,0]
["bague",0,null,0,null,null,0]
["statue",0,null,0,null,null,0]
[]
["Entrée votre nouveau code secret en C14"]
[null,null,111]
["Vous ne le voyez pas mais il y a un code (111) "]
[null,"x","x",null,"x","x"]

{"sheet":"asdan","index":9,"n_rows":16,"n_cols":6,"rows_kept":16,"cut":false,"hidden":false,"merged":[[12,0,12,4],[14,0,14,4]]}
["Badge"]
["brasseur",0]
["tréant",0]
["boulanger",0]
["charpentier",0]
["fermier",0]
["forgeron",0]
["flacon",0]
["barcelet",0]
["bague",0]
["statue",0]
[]
["Entrée votre nouveau code secret en C14"]
[null,null,111]
["Vous ne le voyez pas mais il y a un code (111) "]
[null,"x","x",null,"x","x"]

{"sheet":"valtra","index":10,"n_rows":16,"n_cols":6,"rows_kept":16,"cut":false,"hidden":false,"merged":[[12,0,12,4],[14,0,14,4]]}
["Badge"]
["brasseur",0]
["tréant",0]
["boulanger",0]
["charpentier",0]
["fermier",0]
["forgeron",0]
["flacon",0]
["barcelet",0]
["bague",0]
["statue",0]
[]
["Entrée votre nouveau code secret en C14"]
[null,null,111]
["Vous ne le voyez pas mais il y a un code (111) "]
[null,"x","x",null,"x","x"]

{"sheet":"mini","index":11,"n_rows":16,"n_cols":6,"rows_kept":16,"cut":false,"hidden":false,"merged":[[12,0,12,4],[14,0,14,4]]}
["Badge"]
["brasseur",0]
["tréant",0]
["boulanger",0]
["charpentier",0]
["fermier",0]
["forgeron",0]
["flacon",0]
["barcelet",0]
["bague",0]
["statue",0]
[]
["Entrée votre nouveau code secret en C14"]
[null,null,111]
["Vous ne le voyez pas mais il y a un code (111) "]
[null,"x","x",null,"x","x"]

{"sheet":"algrim","index":12,"n_rows":16,"n_cols":6,"rows_kept":16,"cut":false,"hidden":false,"merged":[[12,0,12,4],[14,0,14,4]]}
["Badge"]
["brasseur",0]
["tréant",0]
["boulanger",0]
["charpentier",0]
["fermier",0]
["forgeron",0]
["flacon",0]
["barcelet",0]
["bague",0]
["statue",0]
[]
["Entrée votre nouveau code secret en C14"]
[null,null,111]
["Vous ne le voyez pas mais il y a un code (111) "]
[null,"x","x",null,"x","x"]

{"sheet":"jac","index":13,"n_rows":16,"n_cols":6,"rows_kept":16,"cut":false,"hidden":false,"merged":[[12,0,12,4],[14,0,14,4]]}
["Badge"]
["brasseur",0]
["tréant",0]
["boulanger",0]
["charpentier",0]
["fermier",0]
["forgeron",0]
["flacon",0]
["barcelet",0]
["bague",0]
["statue",0]
[]
["Entrée votre nouveau code secret en C14"]
[null,null,111]
["Vous ne le voyez pas mais il y a un code (111) "]
[null,"x","x",null,"x","x"]

{"sheet":"Shiwashii","index":14,"n_rows":16,"n_cols":6,"rows_kept":16,"cut":false,"hidden":false,"merged":[[12,0,12,4],[14,0,14,4]]}
["Badge"]
["brasseur",0]
["tréant",0]
["boulanger",0]
["charpentier",0]
["fermier",0]
["forgeron",5]
["flacon",0]
["barcelet",0]
["bague",0]
["statue",9]
[]
["Entrée votre nouveau code secret en C14"]
[null,null,2306]
["Vous ne le voyez pas mais il y a un code (111) "]
[null,"x","x",null,"x","x"]

{"sheet":"lare","index":15,"n_rows":16,"n_cols":6,"rows_kept":16,"cut":false,"hidden":false,"merged":[[12,0,12,4],[14,0,14,4]]}
["Badge"]
["brasseur",0]
["tréant",0]
["boulanger",0]
["charpentier",0]
["fermier",0]
["forgeron",0]
["flacon",0]
["barcelet",0]
["bague",0]
["statue",0]
[]
["Entrée votre nouveau code secret en C14"]
[null,null,111]
["Vous ne le voyez pas mais il y a un code (111) "]
[null,"x","x",null,"x","x"]

{"sheet":"just","index":16,"n_rows":16,"n_cols":6,"rows_kept":16,"cut":false,"hidden":false,"merged":[[12,0,12,4],[14,0,14,4]]}
["Badge"]
["brasseur",0]
["tréant",0]
["boulanger",0]
["charpentier",0]
["fermier",0]
["forgeron",0]
["flacon",0]
["barcelet",0]
["bague",0]
["statue",0]
[]
["Entrée votre nouveau code secret en C14"]
[null,null,111]
["Vous ne le voyez pas mais il y a un code (111) "]
[null,"x","x",null,"x","x"]

{"sheet":"salca","index":17,"n_rows":16,"n_cols":6,"rows_kept":16,"cut":false,"hidden":false,"merged":[[12,0,12,4],[14,0,14,4]]}
["Badge"]
["brasseur",0]
["tréant",0]
["boulanger",0]
["charpentier",0]
["fermier",0]
["forgeron",0]
["flacon",0]
["barcelet",0]
["bague",0]
["statue",0]
[]
["Entrée votre nouveau code secret en C14"]
[null,null,111]
["Vous ne le voyez pas mais il y a un code (111) "]
[null,"x","x",null,"x","x"]

{"sheet":"scroo","index":18,"n_rows":16,"n_cols":6,"rows_kept":16,"cut":false,"hidden":false,"merged":[[12,0,12,4],[14,0,14,4]]}
["Badge"]
["brasseur",0]
["tréant",0]
["boulanger",0]
["charpentier",0]
["fermier",0]
["forgeron",0]
["flacon",0]
["barcelet",0]
["bague",0]
["statue",0]
[]
["Entrée votre nouveau code secret en C14"]
[null,null,111]
["Vous ne le voyez pas mais il y a un code (111) "]
[null,"x","x",null,"x","x"]

{"sheet":"master","index":19,"n_rows":16,"n_cols":6,"rows_kept":16,"cut":false,"hidden":false,"merged":[[12,0,12,4],[14,0,14,4]]}
["Badge"]
["brasseur",0]
["tréant",0]
["boulanger",0]
["charpentier",0]
["fermier",0]
["forgeron",0]
["flacon",0]
["barcelet",0]
["bague",0]
["statue",0]
[]
["Entrée votre nouveau code secret en C14"]
[null,null,111]
["Vous ne le voyez pas mais il y a un code (111) "]
[null,"x","x",null,"x","x"]

{"sheet":"thim","index":20,"n_rows":16,"n_cols":6,"rows_kept":16,"cut":false,"hidden":false,"merged":[[12,0,12,4],[14,0,14,4]]}
["Badge"]
["brasseur",0]
["tréant",0]
["boulanger",0]
["charpentier",0]
["fermier",0]
["forgeron",0]
["flacon",0]
["barcelet",0]
["bague",0]
["statue",0]
[]
["Entrée votre nouveau code secret en C14"]
[null,null,111]
["Vous ne le voyez pas mais il y a un code (111) "]
[null,"x","x",null,"x","x"]

{"sheet":"herit","index":21,"n_rows":16,"n_cols":6,"rows_kept":16,"cut":false,"hidden":false,"merged":[[12,0,12,4],[14,0,14,4]]}
["Badge"]
["brasseur",0]
["tréant",0]
["boulanger",0]
["charpentier",0]
["fermier",0]
["forgeron",0]
["flacon",0]
["barcelet",0]
["bague",0]
["statue",0]
[]
["Entrée votre nouveau code secret en C14"]
[null,null,111]
["Vous ne le voyez pas mais il y a un code (111) "]
[null,"x","x",null,"x","x"]

{"sheet":"nick","index":22,"n_rows":16,"n_cols":6,"rows_kept":16,"cut":false,"hidden":false,"merged":[[12,0,12,4],[14,0,14,4]]}
["Badge"]
["brasseur",0]
["tréant",0]
["boulanger",0]
["charpentier",0]
["fermier",0]
["forgeron",0]
["flacon",0]
["barcelet",0]
["bague",0]
["statue",0]
[]
["Entrée votre nouveau code secret en C14"]
[null,null,111]
["Vous ne le voyez pas mais il y a un code (111) "]
[null,"x","x",null,"x","x"]

{"sheet":"Feuil1","index":23,"n_rows":0,"n_cols":0,"rows_kept":0,"cut":false,"hidden":false,"merged":[]}